Cogmind - Beta 15 @@@ ROGUE MODE // 2025.07.26 @ 15:34:18 Player: Isen Result: Destroyed by G-47 Trooper with Particle Gun Performance ------------- Evolutions (0) 0 Regions Visited (2) 400 Robots Destroyed (17) 85 Value Destroyed (406) 406 Prototype IDs (2) 40 Alien Tech Used (0) 0 Bonus (60) 60 TOTAL SCORE: 991 Bonus ------- Follower Combat Kills 60 Cogmind --------- Core Integrity 0/250 Matter 300/300 Energy 100/100 System Corruption 0% Temperature Cool (9) Movement Core (50) Location -10/Mines Parts ------- > --- POWER (1) -------- (None) > --- PROPULSION (2) --- (None) > --- UTILITY (2) ------ Signal Interpreter > --- WEAPON (2) ------- (None) > --- INVENTORY (5) ---- (None) Peak State ------------ > --- POWER ------------ Light Nuclear Core > --- PROPULSION ------- Light Treads Light Treads > --- UTILITY ---------- Signal Interpreter Hacking Suite > --- WEAPON ----------- Beam Cannon > --- INVENTORY -------- Ion Engine [Rating: 10] Favorites ----------- Power Ion Engine Engine Ion Engine Power Core Light Nuclear Core Propulsion Light Treads Treads Light Treads Utility Signal Interpreter Device Heat Sink Processor Signal Interpreter Hackware Hacking Suite Weapon Beam Cannon Energy Cannon Beam Cannon Ballistic Gun Assault Rifle Special Weapon Mining Laser Build | -11 -10 -10 ------- Run | Yrd Mat Min Slots Evolved . | . . . Power . | . . . Propulsion . | . . . Utility . | . . . Weapon . | . . . Parts Attached 14 | 5 6 3 Power 4 | 1 1 2 Engine 3 | 1 1 1 Core 1 | . . 1 Reactor . | . . . Propulsion 2 | 2 . . Treads 2 | 2 . . Leg . | . . . Wheel . | . . . Hover . | . . . Flight . | . . . Utility 4 | . 4 . Device 2 | . 2 . Storage . | . . . Processor 1 | . 1 . Hackware 1 | . 1 . Protection . | . . . Artifact . | . . . Weapon 4 | 2 1 1 Energy Gun . | . . . Energy Cannon 1 | . 1 . Ballistic Gun 2 | 2 . . Ballistic Cannon . | . . . Launcher . | . . . Special Weapon 1 | . . 1 Impact Weapon . | . . . Slashing Weapon . | . . . Piercing Weapon . | . . . Special Melee Weapon . | . . . Unidentified Prototypes . | . . . Parts Lost 7 | . . 7 Power 1 | . . 1 Propulsion 2 | . . 2 Utility 1 | . . 1 Weapon 3 | . . 3 Highest Loss Streak 5 | . . 5 To Critical Strikes . | . . . Average Backups . | . . . Power . | . . . Propulsion . | . . . Utility . | . . . Weapon . | . . . Tool/Special . | . . . Unused Backups 4 | . 1 3 Power 1 | . 1 . Propulsion . | . . . Utility 1 | . . 1 Weapon 2 | . . 2 Tool/Special . | . . . Average Slot Usage (%) 88 | . 95 77 Engine 9 | . 14 1 Core 4 | . . 11 Treads 23 | . 27 17 Device 7 | . 11 . Processor 12 | . 12 14 Hackware 5 | . . 13 Energy Cannon 10 | . 7 13 Ballistic Gun 12 | . 20 . Special Weapon 1 | . . 4 Peak Build Rating 10 | 5 9 10 Average Rating 7 | 3 6 9 On Entrance 4 | . 5 9 Naked Turns . | . . . Heaviest Build 11 | 8 11 9 Greatest Support 40 | 3 40 40 Greatest Overweight (x) 2 | 2 . 1 Average Overweight (x) . | . . . Largest Inventory Capacity 5 | 5 5 5 Average Capacity 5 | 5 5 5 Most Carried 5 | 5 3 3 Average Carried . | 1 . . Final Capacity 5 | 5 5 5 Final Carried . | . . . Class Distribution -------------------- 100% | Mutant Dominant Class ---------------- Mutant | -10/Materials Mutant | -10/Mines Resources | -11 -10 -10 ----------- Run | Yrd Mat Min Matter Collected 480 | 154 273 53 Remotely . | . . . Salvage Created 418 | . 315 103 Parts 33 | . 26 7 Haulers Intercepted . | . . . Recyclers Shooed . | . . . Parts Field Recycled . | . . . Retrieved Matter . | . . . Parts Self-Destructed . | . . . Prevented . | . . . Kills | -11 -10 -10 ------- Run | Yrd Mat Min Combat Hostiles Destroyed 14 | . 9 5 Melee 1 | . . 1 Guns 3 | . 3 . Cannons 10 | . 6 4 Classes Destroyed 4 | . 4 . Operator 1 | . 1 . Watcher 2 | . 2 . Swarmer 6 | . 3 3 Grunt 8 | . 6 2 Best Kill Streak 4 | . 4 3 Combat Bots Only 4 | . 4 3 Max Kills in Single Turn 2 | . 2 1 Gunslinging . | . . . Exploded . | . . . Melee 1 | . . 1 Uniques/NPCs Destroyed . | . . . Combat | -11 -10 -10 -------- Run | Yrd Mat Min Hostile Shots Fired 112 | . 46 66 Missed 21 | . 11 10 Hits 91 | . 35 56 Projectile 91 | . 35 56 Damage Taken 1057 | . 396 661 Core 250 | . 34 216 Absorbed by Shields . | . . . Regen/Repaired (Parts) 133 | . 133 . Core Remaining (%) 100 | 100 . . Volleys Fired 62 | . 34 28 Largest 2 | . 2 2 Hottest 160 | . 80 160 Shots Fired 104 | . 68 36 Gun 55 | . 49 6 Cannon 47 | . 19 28 Launcher . | . . . Special 2 | . . 2 Kinetic 55 | . 49 6 Thermal 49 | . 19 30 Explosive . | . . . Electromagnetic . | . . . Robot Hit Streak 8 | . 8 4 Robot Miss Streak 3 | . 3 3 Penetration Max . | . . . Secondary Targets . | . . . Shots Hit Robots 56 | . 37 19 Core Hits 23 | . 18 5 Critical Kills . | . . . Critical Parts Destroyed . | . . . Critical Strikes . | . . . Melee Attacks . | . . . Impact . | . . . Slashing . | . . . Piercing . | . . . Sneak Attacks . | . . . Combat Hostiles . | . . . Follow-up Attacks . | . . . Damage Inflicted 803 | . 474 329 Guns 290 | . 245 45 Cannons 509 | . 229 280 Explosions . | . . . Melee . | . . . Ramming 4 | . . 4 Kinetic 290 | . 245 45 Thermal 509 | . 229 280 Explosive . | . . . Electromagnetic . | . . . Impact . | . . . Slashing . | . . . Piercing . | . . . Highest Corruption . | . . . Average Corruption . | . . . Corruption Purged . | . . . Corruption Blocked . | . . . Overload Shots . | . . . Overflow Damage 13 | . . 13 Projectiles 13 | . . 13 Explosions . | . . . Melee . | . . . Knockbacks . | . . . Impact . | . . . Kinetic . | . . . Secondary . | . . . Self-Inflicted Damage . | . . . Shots . | . . . Rammed 4 | . . 4 Targets Rammed 5 | . . 5 Kicked . | . . . Crushed 1 | . . 1 Highest Temperature 226 | . 44 226 Average Temperature 70 | . 16 89 Received Heat Transfer 486 | . 204 282 Siege Activations . | . . . Martial Activations . | . . . Shielding Activations . | . . . Robots Disrupted . | . . . Combat Hostiles . | . . . Robots Corrupted . | . . . Combat Hostiles . | . . . Parts Fried . | . . . Impact Corruptions . | . . . Robots Melted . | . . . Combat Hostiles . | . . . Parts Melted 1 | . . 1 Heat Transferred 1073 | . 481 592 Parts Sabotaged . | . . . Parts Stolen . | . . . Parts Stripped . | . . . Power Chain Reactions . | . . . Alert | -11 -10 -10 ------- Run | Yrd Mat Min Maximum Alert Level . | . . . Low Security (%) 100 | 100 100 100 Level 1 . | . . . Level 2 . | . . . Level 3 . | . . . Level 4 . | . . . Level 5 . | . . . High Security . | . . . Max Security . | . . . Peak Influence 156 | . 156 70 Initial 30 | . . 30 Average 34 | . 44 21 Influence Increases 460 | . 286 174 Destroy 0b10 Robot/C 320 | . 180 140 Destroy 0b10 Robot/NC 15 | . 15 . Destroy Leader 84 | . 54 30 Allied During Kill 3 | . . 3 Successful Hack 21 | . 21 . Destroy Structure 2 | . 1 1 Lose Combat Pursuer 15 | . 15 . Influence Decreases 460 | . 207 253 Entered New Map 49 | . . 49 Time Decay 387 | . 207 180 Lost Part 24 | . . 24 Squads Dispatched 3 | . 3 . Investigation . | . . . Extermination . | . . . Reinforcement 3 | . 3 . Assault . | . . . Garrison . | . . . Intercept . | . . . Searches Triggered . | . . . Construction Impeded . | . . . Haulers Reinforced . | . . . Active Scanning Responses . | . . . Cargo Convoy Interrupts . | . . . Stealth | -11 -10 -10 --------- Run | Yrd Mat Min Distress Signals . | . . . Communications Jammed . | . . . Distress Signals . | . . . Times Spotted 26 | . 18 8 Peak Tracking Total 4 | . 4 3 Tactical Retreats 1 | . 1 . Traps | -11 -10 -10 ------- Run | Yrd Mat Min Traps Triggered . | . . . Indirectly . | . . . Trap Hack Attempts . | . . . Triggered . | . . . Disarmed . | . . . Reprogrammed . | . . . Reused . | . . . Traps Extracted . | . . . Installed . | . . . Triggered . | . . . Machines | -11 -10 -10 ---------- Run | Yrd Mat Min Machines Disabled . | . . . Max in Single Turn . | . . . Machines Repaired . | . . . Machines Dismantled . | . . . Machines Sabotaged . | . . . Overloaded Fab Kills . | . . . Hacking | -11 -10 -10 --------- Run | Yrd Mat Min Machines Accessed 5 | . 5 . Terminals 4 | . 4 . Fabricators . | . . . Repair Stations 1 | . 1 . Recycling Units . | . . . Scanalyzers . | . . . Garrison Access . | . . . Total Hacks 15 | . 15 . Successful 10 | . 10 . Failed 5 | . 5 . Catastrophic . | . . . Database Lockouts . | . . . Manual . | . . . Terminals 9 | . 9 . Fabricators . | . . . Repair Stations 6 | . 6 . Recycling Units . | . . . Scanalyzers . | . . . Garrison Access . | . . . Terminal Hacks 8 | . 8 . Record 5 | . 5 . Prototype ID Bank 1 | . 1 . Dispatch Records 1 | . 1 . Registered Prototypes 1 | . 1 . Fabricator Hacks . | . . . Repair Station Hacks 2 | . 2 . Scan Component 1 | . 1 . Repair 1 | . 1 . Recycling Unit Hacks . | . . . Scanalyzer . | . . . Garrison Access Hacks . | . . . Unauthorized Hacks . | . . . Terminals . | . . . Fabricators . | . . . Repair Stations . | . . . Recycling Units . | . . . Scanalyzers . | . . . Garrison Access . | . . . Data Cores Recovered 1 | . 1 . Used 1 | . 1 . Hacking Detections 3 | . 3 . Full Trace Events 1 | . 1 . Feedback Events . | . . . Feedback Blocked . | . . . Robot Schematics Acquired . | . . . Robots Built . | . . . Authchips . | . . . Time . | . . . Total Robot Build Rating . | . . . Part Schematics Acquired . | . . . Parts Built . | . . . Authchips . | . . . Time . | . . . Total Part Build Rating . | . . . Parts Repaired 1 | . 1 . Time 26 | . 26 . Parts Recycled . | . . . Recycled Matter . | . . . Retrieved Matter . | . . . Retrieved Components . | . . . Parts Scanalyzed . | . . . Part Schematics Acquired . | . . . Parts Damaged . | . . . Bothacking | -11 -10 -10 ------------ Run | Yrd Mat Min Used RIF Installer . | . . . Robots Hacked . | . . . Non-combat . | . . . Combat . | . . . Robot Hacks Applied . | . . . Relay Couplers Released . | . . . Fabnet Peak Effective % . | . . . Robots Rewired . | . . . Allies Hacked . | . . . Hacks Repelled . | . . . Allies | -11 -10 -10 -------- Run | Yrd Mat Min Total Allies 1 | . . 1 Largest Group 1 | . . 1 Highest-Rated Group 31 | . . 31 Highest-Rated Ally 31 | . . 31 Total Orders . | . . . Ally Attacks 10 | . . 10 Total Damage 145 | . . 145 Kills 2 | . . 2 Allies Corrupted . | . . . Allies Melted . | . . . Intel | -11 -10 -10 ------- Run | Yrd Mat Min Active Infowar (turns) . | . . . Robot Analysis Total . | . . . Derelict Logs Recovered 1 | . . 1 Drone Launches . | . . . Drone Recoveries . | . . . Exploration | -11 -10 -10 ------------- Run | Yrd Mat Min Turns Passed 1332 | 40 782 510 Spaces Moved 672 | 33 397 242 Core 35 | 33 . 2 Treads 637 | . 397 240 Legs . | . . . Wheels . | . . . Hover . | . . . Flight . | . . . Fastest Speed 50 | 50 160 50 Average Speed 156 | 95 160 159 Slowest Speed 160 | 150 160 160 Overloaded Moves . | . . . Propulsion Burnouts . | . . . Robots Hopped . | . . . Potential Cave-ins . | . . . Cave-ins Triggered . | . . . Exploration Rate (%) 41 | 3 73 47 Regions Visited 2 Branch Regions 1 Pre-discovered Areas . | . . . Known Exits Taken 1 | . 1 . Unknown Exits Taken 1 | 1 . . Scrap Searched . | . . . Spaces Dug . | . . . Terrain Destroyed 1 | . . 1 Melee . | . . . Projectile 1 | . . 1 AOE . | . . . Terrain Rammed . | . . . Walls Destroyed . | . . . Machines Disabled . | . . . Actions | -11 -10 -10 --------- Run | Yrd Mat Min Total 847 | 42 480 325 Wait 65 | . 29 36 Move 670 | 32 396 242 Hop . | . . . Pick Up 19 | 5 8 6 Fast Attach . | . . . Attach 9 | 5 3 1 Detach 1 | . 1 . Swap 6 | . 4 2 Drop 10 | . 5 5 Fire 62 | . 34 28 Melee . | . . . Ram . | . . . Kick . | . . . Crush 5 | . . 5 Escape Stasis . | . . . Rewire . | . . . Trap . | . . . Miscellaneous . | . . . Route ------- -11/Scrapyard -10/Materials (discovered 4 exits: *Mat x2 / *Min x2) -10/Mines History --------- Turn | Location | Event 4 | -11/Scrapyard | Discovered new exit (range 16) 41 | -11/Scrapyard | Entered Materials 237 | -10/Materials | Discovered new exit (range 7) 248 | -10/Materials | Identified exit to Mines 309 | -10/Materials | Build established: Mutant 395 | -10/Materials | Discovered new exit (range 15) 416 | -10/Materials | Identified exit to Materials 572 | -10/Materials | Discovered exit to Materials (range 8) 732 | -10/Materials | Repaired Lgt. Treads 764 | -10/Materials | Discovered exit to Mines (range 7) 823 | -10/Materials | Entered Mines 1034 | -10/Mines | Assembled infested the area 1116 | -10/Mines | Learned Materials security intel 1129 | -10/Mines | Received a Mining Laser from a helpful Derelict 1308 | -10/Mines | Core integrity fell below 50% 1328 | -10/Mines | Core integrity fell below 20% 1333 | -10/Mines | Destroyed by G-47 Trooper with Particle Gun Last Messages --------------- 01198_ G-47 Trooper destroyed. 01201_ K-01 Serf collects debris. 01207_ G-34 Mercenary destroyed. 01208_ K-01 Serf collects debris. 01215_ Acquired Sml. Laser. 01217_ K-01 Serf collects debris. 01218_ Acquired Particle Gun. 01218_ K-01 Serf collects debris. 01221_ Acquired 10 matter. 01223_ K-01 Serf collects debris. 01229_ Acquired Heat Sink. 01230_ Dropped Heat Sink. 01230_ Dropped Sml. Laser. 01231_ Dropped Particle Gun. 01303_ Lgt. Treads destroyed. 01306_ Mining Laser destroyed. 01308_ Hacking Suite destroyed. 01309_ Beam Cannon destroyed. 01310_ Lgt. Nuclear Core destroyed. 01311_ DR-SR3(g) destroyed. Map ----- +----------------------------------------------------+ | ????????????????????##?????# ###### ?????? | | ???????????????????## ????# #??????????????? | | ??????????????????## ??## ##??????????????? | | ??????????????##### ## ###??????#####????? | | ???????????? ##???????## ##???? | | ???????????? ########## ##??? | | ???????????????######## ##?? | | ??????????????????????### """ ##? | | ????????????????????????## """ ####### #? | | ????????????????????????## """ ##????## #? | | ???????????????????????## """ ##?????# ##? | | ???????????????????????# ##?????# #####?? | | ???????????????????????# ##????## ##?????? | | ???????????????????????## #?????####??????? | | ????????????????????????# #???????????????? | | ????????????????????????## #???????????????? | | ?????????????????????????# =%##??????????????? | | ?????????????????????????# %###????????????? | | ????????????????????????## [! ##???????????? | | ????????????????????????# [ #####???????? | | ????????????????????????# #???????? | | ??????? ######## #??????? | | ??????????"" ###### ## #?????? | | ??????????"" ####" #????## #?## ??? | | ??????????????????????#g######## #???# #?? | | ??????????????????????#%g@ #???? ###??? | | ??????????????????????########## #????? #????? | | ???????????????????????????????# #?????? #????? | | ??????????????????????????###### ######?? #????? | | ??????????????????????????# #?? ?#????? | | ??????????????????????????# #?????????? | | ??????????????????????????# #?????????? | | ??????????????????????????# !! #?????????? | | ??????????????????????????# ! ! #?????????? | | ??????????????????????????# ! ! #?????????? | | ??????????????????????????# ! ! #?????????? | | ??????????????????????????# #?????????? | | ??????????????????????????# #?????????? | | ??????????????????????????# #?????????? | | ??????????????????????????# #?????????? | | ??????????????????????????# #?????????? | | ??????????????????????????##############?????????? | | ?????????????????????????????????????????????????? | | ?????????????????????????????????????????????????? | | ?????????????????????????????????????????????????? | | ?????????????????????????????????????????????????? | | | | | | | | | +----------------------------------------------------+ Best States ------------- Heat Dissipation 35 Energy Generation 14 Energy Capacity 250 Matter Stores 300 Matter Capacity 300 Sight Range 16 Terrain Scan Density 10 Evasion (%) 40 Recoil Reduction 2 Offensive Hacking 10 Item Schematics ----------------- None Robot Schematics ------------------ None Fabricated ------------ Nothing Repaired ---------- Lgt. Treads | 5% | -10/Materials Alien Tech Used ----------------- None Achievements -------------- Dynamic Key Part-time Mechanic Challenges ------------ None Game ------ Seed TransportFissionWeb Manual? 0 Play Time 00:14:35 Cumulative 0.7 hours Start 2025.07.26 @ 15:20:35 End 2025.07.26 @ 15:34:18 Sessions 1 Manual Loads 0 Difficulty Rogue Special Mode None Game No. 5 Rogue 5 Adventurer 0 Explorer 0 Win Type - Total 0 Types 0/0/0/0/0/0/0/0/0/0 Lore% 0 Gallery% 2 Achievement% 3 Wizard Run 0 Options --------- Layout 1 ASCII 0 Keyboard 0 Movement Numpad Keybinds 0 Fullscreen 1 Font 32/SmallcapsGlow Map View 50x40 Zoom Use 0% Tactical HUD 1 Map Filters NONE Filters NONE Steam 1 RUN: 9362158d-bf48-48a1-9bae-2a096bf36775